[Event "Titled Tuesday Blitz December 06 Early 2022"]
[White "Quizon, Daniel"]
[Black "Hoffmann, Asa"]
[WhiteFideId "5217911"]
[BlackFideId "2001470"]
[WhiteElo "2385"]
[BlackElo "2117"]
[Result "1-0"]
[Round "04"]
[TimeControl "180+1"]
[Date "2022.12.07"]
[WhiteClock "0:02:27"]
[BlackClock "0:00:28"]

1. Nf3 {[%clk 0:03:00]}  d6 {[%clk 0:02:51]} 2. d4 {[%clk 0:03:00]}  Bg4 {[%clk 0:02:46]} 3. e4 {[%clk 0:03:00]}  Nf6 {[%clk 0:02:43]} 4. Nc3 {[%clk 0:03:00]}  c6 {[%clk 0:02:43]} 5. h3 {[%clk 0:02:59]}  Bh5 {[%clk 0:02:42]} 6. g4 {[%clk 0:03:00]}  Bg6 {[%clk 0:02:42]} 7. Bd3 {[%clk 0:03:00]}  e6 {[%clk 0:02:42]} 8. h4 {[%clk 0:03:01]}  d5 {[%clk 0:02:41]} 9. e5 {[%clk 0:02:58]}  Nfd7 {[%clk 0:02:40]} 10. h5 {[%clk 0:02:55]}  Bxd3 {[%clk 0:02:39]} 11. Qxd3 {[%clk 0:02:56]}  h6 {[%clk 0:02:39]} 12. g5 {[%clk 0:02:52]}  c5 {[%clk 0:02:33]} 13. g6 {[%clk 0:02:51]}  f5 {[%clk 0:02:31]} 14. Nxd5 {[%clk 0:02:47]}  exd5 {[%clk 0:02:25]} 15. Qxf5 {[%clk 0:02:48]}  Qe7 {[%clk 0:02:17]} 16. Be3 {[%clk 0:02:46]}  Nc6 {[%clk 0:02:14]} 17. O-O-O {[%clk 0:02:46]}  cxd4 {[%clk 0:01:55]} 18. Nxd4 {[%clk 0:02:43]}  Nxd4 {[%clk 0:01:41]} 19. Rxd4 {[%clk 0:02:42]}  Nb6 {[%clk 0:01:27]} 20. Rhd1 {[%clk 0:02:36]}  Rd8 {[%clk 0:01:21]} 21. a4 {[%clk 0:02:30]}  Rd7 {[%clk 0:00:32]} 22. a5 {[%clk 0:02:29]}  Nc4 {[%clk 0:00:28]} 23. Rxd5 {[%clk 0:02:27]} 1-0


[Site "https://www.chess.com"]

[Event "Titled Tuesday Blitz December 06 Early 2022"]
[White "Raahul V S"]
[Black "Rian, Kapriaga"]
[WhiteFideId "25035525"]
[BlackFideId "7103263"]
[WhiteElo "2202"]
[BlackElo "2323"]
[Result "1-0"]
[Round "04"]
[TimeControl "180+1"]
[Date "2022.12.07"]
[WhiteClock "0:01:03"]
[BlackClock "0:00:12"]

1. b3 {[%clk 0:02:55]}  c5 {[%clk 0:02:55]} 2. Bb2 {[%clk 0:02:55]}  d6 {[%clk 0:02:55]} 3. Nf3 {[%clk 0:02:49]}  e5 {[%clk 0:02:54]} 4. d3 {[%clk 0:02:44]}  Nc6 {[%clk 0:02:52]} 5. g3 {[%clk 0:02:45]}  Nf6 {[%clk 0:02:47]} 6. Bg2 {[%clk 0:02:45]}  Be7 {[%clk 0:02:46]} 7. O-O {[%clk 0:02:44]}  O-O {[%clk 0:02:45]} 8. c4 {[%clk 0:02:45]}  h6 {[%clk 0:02:42]} 9. Nc3 {[%clk 0:02:44]}  Be6 {[%clk 0:02:40]} 10. e3 {[%clk 0:02:36]}  d5 {[%clk 0:02:32]} 11. cxd5 {[%clk 0:02:35]}  Nxd5 {[%clk 0:02:33]} 12. Nxd5 {[%clk 0:02:35]}  Bxd5 {[%clk 0:02:26]} 13. e4 {[%clk 0:02:34]}  Be6 {[%clk 0:02:23]} 14. Nxe5 {[%clk 0:02:35]}  Nxe5 {[%clk 0:02:14]} 15. Bxe5 {[%clk 0:02:35]}  Qd7 {[%clk 0:02:13]} 16. Qe2 {[%clk 0:02:31]}  Rfd8 {[%clk 0:02:01]} 17. Rad1 {[%clk 0:02:31]}  Rac8 {[%clk 0:01:55]} 18. d4 {[%clk 0:02:21]}  f6 {[%clk 0:01:21]} 19. dxc5 {[%clk 0:02:18]}  Qc6 {[%clk 0:01:18]} 20. Bd6 {[%clk 0:02:18]}  Bxd6 {[%clk 0:01:11]} 21. cxd6 {[%clk 0:02:18]}  Qc5 {[%clk 0:01:02]} 22. Qd3 {[%clk 0:01:39]}  Rd7 {[%clk 0:00:48]} 23. Qd4 {[%clk 0:01:27]}  Qa5 {[%clk 0:00:42]} 24. Rfe1 {[%clk 0:01:14]}  Rcd8 {[%clk 0:00:34]} 25. e5 {[%clk 0:01:13]}  fxe5 {[%clk 0:00:31]} 26. Rxe5 {[%clk 0:01:14]}  Rxd6 {[%clk 0:00:24]} 27. Rxa5 {[%clk 0:01:12]}  Rxd4 {[%clk 0:00:22]} 28. Rxd4 {[%clk 0:01:13]}  Rxd4 {[%clk 0:00:21]} 29. Bxb7 {[%clk 0:01:13]}  Bh3 {[%clk 0:00:18]} 30. Rd5 {[%clk 0:01:05]}  Rxd5 {[%clk 0:00:15]} 31. Bxd5+ {[%clk 0:01:06]}  Kf8 {[%clk 0:00:14]} 32. f4 {[%clk 0:01:05]}  Ke7 {[%clk 0:00:14]} 33. Kf2 {[%clk 0:01:05]}  Kd6 {[%clk 0:00:14]} 34. Bg2 {[%clk 0:01:05]}  Kc5 {[%clk 0:00:14]} 35. Bxh3 {[%clk 0:01:05]}  Kb4 {[%clk 0:00:13]} 36. Ke3 {[%clk 0:01:05]}  Ka3 {[%clk 0:00:13]} 37. Be6 {[%clk 0:01:06]}  Kxa2 {[%clk 0:00:12]} 38. Kd3 {[%clk 0:01:04]}  Ka3 {[%clk 0:00:12]} 39. Kc3 {[%clk 0:01:04]}  a5 {[%clk 0:00:12]} 40. Bd7 {[%clk 0:01:03]} 1-0


[Site "https://www.chess.com"]

[Event "Titled Tuesday Blitz December 06 Early 2022"]
[White "Ramirez Vido, Robert Yorisan"]
[Black "Mitrovic, Darko R"]
[WhiteFideId "3513823"]
[BlackFideId "927023"]
[WhiteElo "2365"]
[BlackElo "2150"]
[Result "1-0"]
[Round "04"]
[TimeControl "180+1"]
[Date "2022.12.07"]
[WhiteClock "0:00:27"]
[BlackClock "0:00:08"]

1. f4 {[%clk 0:03:00]}  d5 {[%clk 0:02:45]} 2. Nf3 {[%clk 0:03:00]}  Nf6 {[%clk 0:02:44]} 3. g3 {[%clk 0:03:00]}  g6 {[%clk 0:02:44]} 4. Bg2 {[%clk 0:03:01]}  Bg7 {[%clk 0:02:45]} 5. d3 {[%clk 0:03:00]}  O-O {[%clk 0:02:45]} 6. O-O {[%clk 0:03:00]}  c5 {[%clk 0:02:45]} 7. Qe1 {[%clk 0:03:00]}  d4 {[%clk 0:02:45]} 8. Na3 {[%clk 0:02:59]}  Nc6 {[%clk 0:02:45]} 9. Bd2 {[%clk 0:02:57]}  Bd7 {[%clk 0:02:35]} 10. c3 {[%clk 0:02:56]}  dxc3 {[%clk 0:02:34]} 11. bxc3 {[%clk 0:02:55]}  b6 {[%clk 0:02:33]} 12. Ne5 {[%clk 0:02:53]}  Rc8 {[%clk 0:02:30]} 13. Nac4 {[%clk 0:02:41]}  e6 {[%clk 0:02:21]} 14. Nd6 {[%clk 0:02:30]}  Rc7 {[%clk 0:02:20]} 15. Nb5 {[%clk 0:02:30]}  Rc8 {[%clk 0:02:18]} 16. Nxc6 {[%clk 0:02:29]}  Bxc6 {[%clk 0:02:17]} 17. Bxc6 {[%clk 0:02:16]}  Rxc6 {[%clk 0:02:17]} 18. Nxa7 {[%clk 0:02:13]}  Rc7 {[%clk 0:02:11]} 19. Nb5 {[%clk 0:02:12]}  Rc8 {[%clk 0:02:09]} 20. Rb1 {[%clk 0:01:36]}  Ra8 {[%clk 0:02:07]} 21. a3 {[%clk 0:01:26]}  Nd5 {[%clk 0:02:04]} 22. c4 {[%clk 0:01:24]}  Nc7 {[%clk 0:01:57]} 23. Bc3 {[%clk 0:01:11]}  Nxb5 {[%clk 0:01:52]} 24. Rxb5 {[%clk 0:01:12]}  Rxa3 {[%clk 0:01:47]} 25. Bxg7 {[%clk 0:01:12]}  Kxg7 {[%clk 0:01:47]} 26. Qb1 {[%clk 0:01:13]}  Qd4+ {[%clk 0:01:28]} 27. Kg2 {[%clk 0:01:07]}  Rfa8 {[%clk 0:01:23]} 28. Rxb6 {[%clk 0:00:52]}  Ra1 {[%clk 0:01:14]} 29. Qb2 {[%clk 0:00:52]}  Rxf1 {[%clk 0:00:57]} 30. Qxd4+ {[%clk 0:00:47]}  cxd4 {[%clk 0:00:57]} 31. Kxf1 {[%clk 0:00:46]}  Ra1+ {[%clk 0:00:55]} 32. Kf2 {[%clk 0:00:46]}  Rh1 {[%clk 0:00:55]} 33. Kg2 {[%clk 0:00:44]}  Re1 {[%clk 0:00:54]} 34. Kf2 {[%clk 0:00:44]}  Rh1 {[%clk 0:00:53]} 35. h4 {[%clk 0:00:45]}  Kf6 {[%clk 0:00:42]} 36. Rd6 {[%clk 0:00:43]}  Kf5 {[%clk 0:00:41]} 37. Rxd4 {[%clk 0:00:40]}  Kg4 {[%clk 0:00:35]} 38. c5 {[%clk 0:00:40]}  Rh2+ {[%clk 0:00:27]} 39. Ke1 {[%clk 0:00:40]}  Kxg3 {[%clk 0:00:25]} 40. c6 {[%clk 0:00:40]}  Rh1+ {[%clk 0:00:25]} 41. Kd2 {[%clk 0:00:40]}  Ra1 {[%clk 0:00:23]} 42. c7 {[%clk 0:00:39]}  Ra2+ {[%clk 0:00:20]} 43. Ke3 {[%clk 0:00:36]}  Ra8 {[%clk 0:00:17]} 44. Rd8 {[%clk 0:00:35]}  Ra1 {[%clk 0:00:16]} 45. c8=Q {[%clk 0:00:34]}  Rf1 {[%clk 0:00:14]} 46. Qc7 {[%clk 0:00:30]}  Kxh4 {[%clk 0:00:13]} 47. Qxf7 {[%clk 0:00:30]}  Kg3 {[%clk 0:00:10]} 48. Qxh7 {[%clk 0:00:24]}  Rxf4 {[%clk 0:00:09]} 49. Qxg6+ {[%clk 0:00:24]}  Rg4 {[%clk 0:00:09]} 50. Qxg4+ {[%clk 0:00:24]}  Kxg4 {[%clk 0:00:09]} 51. Rf8 {[%clk 0:00:25]}  e5 {[%clk 0:00:07]} 52. Ke4 {[%clk 0:00:25]}  Kg3 {[%clk 0:00:07]} 53. Kxe5 {[%clk 0:00:24]}  Kg4 {[%clk 0:00:08]} 54. d4 {[%clk 0:00:25]}  Kg3 {[%clk 0:00:08]} 55. d5 {[%clk 0:00:26]}  Kg4 {[%clk 0:00:08]} 56. d6 {[%clk 0:00:27]}  Kg5 {[%clk 0:00:08]} 57. d7 {[%clk 0:00:27]}  Kg4 {[%clk 0:00:08]} 58. d8=Q {[%clk 0:00:27]}  Kg3 {[%clk 0:00:08]} 59. Qg5+ {[%clk 0:00:27]} 1-0


[Site "https://www.chess.com"]

[Event "Titled Tuesday Blitz December 06 Early 2022"]
[White "Ray, Sarathi"]
[Black "Jaskolka, Tomasz"]
[WhiteFideId "2032490"]
[BlackFideId "1170791"]
[WhiteElo "2029"]
[BlackElo "2126"]
[Result "0-1"]
[Round "04"]
[TimeControl "180+1"]
[Date "2022.12.07"]
[WhiteClock "0:00:08"]
[BlackClock "0:00:13"]

1. e4 {[%clk 0:03:00]}  c5 {[%clk 0:02:58]} 2. Nc3 {[%clk 0:02:58]}  e6 {[%clk 0:02:57]} 3. f4 {[%clk 0:02:57]}  d5 {[%clk 0:02:57]} 4. Nf3 {[%clk 0:02:56]}  Nc6 {[%clk 0:02:57]} 5. Bb5 {[%clk 0:02:53]}  dxe4 {[%clk 0:02:56]} 6. Bxc6+ {[%clk 0:02:47]}  bxc6 {[%clk 0:02:56]} 7. Nxe4 {[%clk 0:02:47]}  Nf6 {[%clk 0:02:57]} 8. d3 {[%clk 0:02:46]}  c4 {[%clk 0:02:53]} 9. O-O {[%clk 0:02:25]}  cxd3 {[%clk 0:02:52]} 10. Qxd3 {[%clk 0:02:09]}  Qxd3 {[%clk 0:02:50]} 11. Nxf6+ {[%clk 0:02:04]}  gxf6 {[%clk 0:02:50]} 12. cxd3 {[%clk 0:02:04]}  Ba6 {[%clk 0:02:51]} 13. Rd1 {[%clk 0:01:59]}  O-O-O {[%clk 0:02:48]} 14. Be3 {[%clk 0:01:58]}  Kb7 {[%clk 0:02:32]} 15. d4 {[%clk 0:01:43]}  Bc4 {[%clk 0:02:21]} 16. b3 {[%clk 0:01:20]}  Bd5 {[%clk 0:02:20]} 17. Kf2 {[%clk 0:01:19]}  Bd6 {[%clk 0:02:17]} 18. Rac1 {[%clk 0:01:18]}  a5 {[%clk 0:02:06]} 19. Nd2 {[%clk 0:01:06]}  Rhg8 {[%clk 0:02:05]} 20. g3 {[%clk 0:01:07]}  a4 {[%clk 0:01:47]} 21. Nc4 {[%clk 0:01:06]}  Bc7 {[%clk 0:01:42]} 22. bxa4 {[%clk 0:01:01]}  Ra8 {[%clk 0:01:42]} 23. a5 {[%clk 0:01:01]}  Bxa5 {[%clk 0:01:42]} 24. Nxa5+ {[%clk 0:01:00]}  Rxa5 {[%clk 0:01:43]} 25. Rb1+ {[%clk 0:00:59]}  Kc7 {[%clk 0:01:42]} 26. Rb2 {[%clk 0:00:54]}  Rga8 {[%clk 0:01:42]} 27. Rdb1 {[%clk 0:00:53]}  R8a7 {[%clk 0:01:39]} 28. Bd2 {[%clk 0:00:49]}  Rxa2 {[%clk 0:01:37]} 29. Rxa2 {[%clk 0:00:49]}  Rxa2 {[%clk 0:01:37]} 30. Ke3 {[%clk 0:00:48]}  Ra3+ {[%clk 0:01:38]} 31. Ke2 {[%clk 0:00:47]}  f5 {[%clk 0:01:37]} 32. Bb4 {[%clk 0:00:42]}  Ra2+ {[%clk 0:01:34]} 33. Bd2 {[%clk 0:00:40]}  h5 {[%clk 0:01:33]} 34. Rc1 {[%clk 0:00:32]}  Ra3 {[%clk 0:01:25]} 35. Be3 {[%clk 0:00:29]}  Kd6 {[%clk 0:01:20]} 36. Rb1 {[%clk 0:00:26]}  Kc7 {[%clk 0:01:21]} 37. Rc1 {[%clk 0:00:26]}  Ra8 {[%clk 0:01:21]} 38. Rb1 {[%clk 0:00:26]}  Rh8 {[%clk 0:01:19]} 39. Rg1 {[%clk 0:00:25]}  h4 {[%clk 0:01:19]} 40. g4 {[%clk 0:00:24]}  fxg4 {[%clk 0:01:17]} 41. Rxg4 {[%clk 0:00:24]}  Be4 {[%clk 0:01:07]} 42. Rg7 {[%clk 0:00:20]}  Bg6 {[%clk 0:01:07]} 43. f5 {[%clk 0:00:20]}  exf5 {[%clk 0:01:05]} 44. Bf4+ {[%clk 0:00:20]}  Kd7 {[%clk 0:01:05]} 45. Be5 {[%clk 0:00:20]}  Ra8 {[%clk 0:01:02]} 46. Bf6 {[%clk 0:00:20]}  Ke6 {[%clk 0:01:00]} 47. Bxh4 {[%clk 0:00:20]}  Ra2+ {[%clk 0:00:59]} 48. Ke3 {[%clk 0:00:18]}  Rxh2 {[%clk 0:01:00]} 49. Bg3 {[%clk 0:00:18]}  Ra2 {[%clk 0:00:57]} 50. Kf4 {[%clk 0:00:18]}  Re2 {[%clk 0:00:55]} 51. Rg8 {[%clk 0:00:18]}  Re4+ {[%clk 0:00:55]} 52. Kf3 {[%clk 0:00:19]}  Rxd4 {[%clk 0:00:53]} 53. Rc8 {[%clk 0:00:18]}  Rc4 {[%clk 0:00:46]} 54. Bf2 {[%clk 0:00:18]}  Bh5+ {[%clk 0:00:44]} 55. Ke3 {[%clk 0:00:18]}  f4+ {[%clk 0:00:44]} 56. Kd2 {[%clk 0:00:17]}  Kd5 {[%clk 0:00:36]} 57. Kd3 {[%clk 0:00:17]}  Bg6+ {[%clk 0:00:34]} 58. Kd2 {[%clk 0:00:18]}  Rc2+ {[%clk 0:00:34]} 59. Ke1 {[%clk 0:00:16]}  Ke4 {[%clk 0:00:33]} 60. Bb6 {[%clk 0:00:14]}  Bh5 {[%clk 0:00:26]} 61. Rh8 {[%clk 0:00:11]}  Bg4 {[%clk 0:00:25]} 62. Rh4 {[%clk 0:00:09]}  f5 {[%clk 0:00:25]} 63. Rh8 {[%clk 0:00:08]}  Re2+ {[%clk 0:00:25]} 64. Kf1 {[%clk 0:00:08]}  Kf3 {[%clk 0:00:25]} 65. Ba5 {[%clk 0:00:06]}  Ra2 {[%clk 0:00:18]} 66. Be1 {[%clk 0:00:06]}  c5 {[%clk 0:00:18]} 67. Rc8 {[%clk 0:00:06]}  Ra1 {[%clk 0:00:12]} 68. Rd8 {[%clk 0:00:06]}  Bh3+ {[%clk 0:00:12]} 69. Kg1 {[%clk 0:00:04]}  Rxe1+ {[%clk 0:00:13]} 70. Kh2 {[%clk 0:00:05]}  Ra1 {[%clk 0:00:09]} 71. Rd3+ {[%clk 0:00:05]}  Ke4 {[%clk 0:00:09]} 72. Rxh3 {[%clk 0:00:04]}  c4 {[%clk 0:00:09]} 73. Rc3 {[%clk 0:00:05]}  Kd4 {[%clk 0:00:10]} 74. Rc2 {[%clk 0:00:05]}  Kd3 {[%clk 0:00:11]} 75. Rf2 {[%clk 0:00:06]}  Re1 {[%clk 0:00:09]} 76. Rxf4 {[%clk 0:00:06]}  c3 {[%clk 0:00:10]} 77. Rxf5 {[%clk 0:00:06]}  c2 {[%clk 0:00:10]} 78. Rd5+ {[%clk 0:00:07]}  Kc3 {[%clk 0:00:10]} 79. Rc5+ {[%clk 0:00:07]}  Kd2 {[%clk 0:00:11]} 80. Rd5+ {[%clk 0:00:07]}  Kc3 {[%clk 0:00:11]} 81. Rc5+ {[%clk 0:00:08]}  Kd3 {[%clk 0:00:11]} 82. Rd5+ {[%clk 0:00:09]}  Kc4 {[%clk 0:00:11]} 83. Rd8 {[%clk 0:00:09]}  c1=Q {[%clk 0:00:12]} 84. Rc8+ {[%clk 0:00:10]}  Kd5 {[%clk 0:00:12]} 85. Rxc1 {[%clk 0:00:08]}  Rxc1 {[%clk 0:00:13]} 0-1


[Site "https://www.chess.com"]

[Event "Titled Tuesday Blitz December 06 Early 2022"]
[White "Riehle, Marco"]
[Black "Gatterer, Florian"]
[WhiteFideId "12904392"]
[BlackFideId "811688"]
[WhiteElo "2462"]
[BlackElo "2218"]
[Result "1-0"]
[Round "04"]
[TimeControl "180+1"]
[Date "2022.12.07"]
[WhiteClock "0:01:37"]
[BlackClock "0:00:18"]

1. e4 {[%clk 0:03:00]}  c6 {[%clk 0:02:59]} 2. c4 {[%clk 0:02:59]}  d5 {[%clk 0:02:59]} 3. cxd5 {[%clk 0:03:00]}  cxd5 {[%clk 0:03:00]} 4. exd5 {[%clk 0:03:01]}  Nf6 {[%clk 0:03:00]} 5. Nc3 {[%clk 0:02:53]}  Nxd5 {[%clk 0:02:59]} 6. Nf3 {[%clk 0:02:53]}  Nc6 {[%clk 0:02:59]} 7. Bb5 {[%clk 0:02:48]}  g6 {[%clk 0:02:57]} 8. Qa4 {[%clk 0:02:44]}  Nb6 {[%clk 0:02:53]} 9. Bxc6+ {[%clk 0:02:41]}  bxc6 {[%clk 0:02:54]} 10. Qxc6+ {[%clk 0:02:41]}  Bd7 {[%clk 0:02:54]} 11. Qe4 {[%clk 0:02:42]}  Bg7 {[%clk 0:02:52]} 12. d4 {[%clk 0:02:31]}  Rc8 {[%clk 0:02:50]} 13. O-O {[%clk 0:02:31]}  O-O {[%clk 0:02:34]} 14. Ne5 {[%clk 0:02:30]}  Bf5 {[%clk 0:02:22]} 15. Qh4 {[%clk 0:02:22]}  Nc4 {[%clk 0:02:00]} 16. Nxc4 {[%clk 0:02:14]}  Rxc4 {[%clk 0:01:52]} 17. Be3 {[%clk 0:02:14]}  Bxd4 {[%clk 0:01:37]} 18. Bxd4 {[%clk 0:02:14]}  Rxd4 {[%clk 0:01:35]} 19. Qg3 {[%clk 0:02:14]}  Qb6 {[%clk 0:01:27]} 20. b3 {[%clk 0:02:11]}  Rd3 {[%clk 0:01:16]} 21. Na4 {[%clk 0:02:03]}  Rxg3 {[%clk 0:01:02]} 22. Nxb6 {[%clk 0:02:03]}  Rd3 {[%clk 0:00:51]} 23. Nc4 {[%clk 0:02:02]}  Be6 {[%clk 0:00:48]} 24. Rac1 {[%clk 0:01:58]}  Bxc4 {[%clk 0:00:46]} 25. Rxc4 {[%clk 0:01:58]}  Rd2 {[%clk 0:00:45]} 26. Ra4 {[%clk 0:01:58]}  Rd7 {[%clk 0:00:43]} 27. g3 {[%clk 0:01:57]}  h5 {[%clk 0:00:42]} 28. Rc1 {[%clk 0:01:56]}  Rfd8 {[%clk 0:00:41]} 29. Rc2 {[%clk 0:01:56]}  Kg7 {[%clk 0:00:40]} 30. Kg2 {[%clk 0:01:56]}  e6 {[%clk 0:00:38]} 31. h4 {[%clk 0:01:56]}  Rb8 {[%clk 0:00:36]} 32. Rc5 {[%clk 0:01:55]}  Rbb7 {[%clk 0:00:34]} 33. Rc8 {[%clk 0:01:48]}  Rbc7 {[%clk 0:00:34]} 34. Rxc7 {[%clk 0:01:45]}  Rxc7 {[%clk 0:00:34]} 35. Kf3 {[%clk 0:01:46]}  Kf6 {[%clk 0:00:34]} 36. Ke3 {[%clk 0:01:45]}  Ke5 {[%clk 0:00:33]} 37. Ra5+ {[%clk 0:01:45]}  Kd6 {[%clk 0:00:33]} 38. f3 {[%clk 0:01:45]}  Rc3+ {[%clk 0:00:30]} 39. Kf4 {[%clk 0:01:44]}  Rc7 {[%clk 0:00:29]} 40. g4 {[%clk 0:01:43]}  hxg4 {[%clk 0:00:29]} 41. fxg4 {[%clk 0:01:44]}  Ke7 {[%clk 0:00:29]} 42. h5 {[%clk 0:01:43]}  gxh5 {[%clk 0:00:28]} 43. gxh5 {[%clk 0:01:43]}  Kf6 {[%clk 0:00:24]} 44. Ra4 {[%clk 0:01:40]}  Rd7 {[%clk 0:00:24]} 45. Kg4 {[%clk 0:01:39]}  Rc7 {[%clk 0:00:18]} 46. Rf4+ {[%clk 0:01:36]}  Kg7 {[%clk 0:00:18]} 47. Rc4 {[%clk 0:01:37]}  Kf6 {[%clk 0:00:18]} 48. Rxc7 {[%clk 0:01:37]} 1-0


[Site "https://www.chess.com"]

[Event "Titled Tuesday Blitz December 06 Early 2022"]
[White "Rosenberg, Evan S"]
[Black "Clawitter, Craig"]
[WhiteFideId "2019299"]
[BlackFideId "2023105"]
[WhiteElo "2351"]
[BlackElo "2175"]
[Result "1-0"]
[Round "04"]
[TimeControl "180+1"]
[Date "2022.12.07"]
[WhiteClock "0:00:05"]
[BlackClock "0:00:01"]

1. d4 {[%clk 0:03:00]}  e6 {[%clk 0:02:59]} 2. Nf3 {[%clk 0:03:00]}  Nf6 {[%clk 0:02:59]} 3. g3 {[%clk 0:02:59]}  d5 {[%clk 0:02:59]} 4. Bg2 {[%clk 0:02:59]}  Be7 {[%clk 0:03:00]} 5. O-O {[%clk 0:03:00]}  O-O {[%clk 0:03:00]} 6. c4 {[%clk 0:03:00]}  dxc4 {[%clk 0:03:01]} 7. Qc2 {[%clk 0:02:59]}  a6 {[%clk 0:03:01]} 8. a4 {[%clk 0:02:56]}  Bd7 {[%clk 0:03:01]} 9. Ne5 {[%clk 0:02:55]}  Nc6 {[%clk 0:02:43]} 10. Nxc6 {[%clk 0:02:46]}  Bxc6 {[%clk 0:02:40]} 11. Bxc6 {[%clk 0:02:45]}  bxc6 {[%clk 0:02:40]} 12. Qxc4 {[%clk 0:02:46]}  Qd5 {[%clk 0:02:29]} 13. Nd2 {[%clk 0:02:30]}  h5 {[%clk 0:01:54]} 14. b3 {[%clk 0:02:27]}  h4 {[%clk 0:01:54]} 15. Bb2 {[%clk 0:02:19]}  c5 {[%clk 0:01:39]} 16. Rac1 {[%clk 0:01:44]}  cxd4 {[%clk 0:01:19]} 17. Qxd4 {[%clk 0:01:33]}  Rfd8 {[%clk 0:01:10]} 18. Qxd5 {[%clk 0:01:28]}  Nxd5 {[%clk 0:01:01]} 19. Nf3 {[%clk 0:01:24]}  hxg3 {[%clk 0:01:00]} 20. hxg3 {[%clk 0:01:25]}  Rab8 {[%clk 0:01:00]} 21. e4 {[%clk 0:01:12]}  Rxb3 {[%clk 0:00:48]} 22. exd5 {[%clk 0:01:12]}  Rxd5 {[%clk 0:00:20]} 23. Rxc7 {[%clk 0:00:32]}  Bf8 {[%clk 0:00:18]} 24. Bc3 {[%clk 0:00:25]}  Rd3 {[%clk 0:00:14]} 25. Ne5 {[%clk 0:00:21]}  Rdxc3 {[%clk 0:00:13]} 26. Rc1 {[%clk 0:00:11]}  Rxc7 {[%clk 0:00:09]} 27. Rxc7 {[%clk 0:00:11]}  f6 {[%clk 0:00:08]} 28. Ng6 {[%clk 0:00:09]}  Bd6 {[%clk 0:00:03]} 29. Rc6 {[%clk 0:00:08]}  Rd3 {[%clk 0:00:02]} 30. Rxa6 {[%clk 0:00:06]}  Kf7 {[%clk 0:00:01]} 31. Nh4 {[%clk 0:00:05]} 1-0


[Site "https://www.chess.com"]

[Event "Titled Tuesday Blitz December 06 Early 2022"]
[White "Sadhwani, Raunak"]
[Black "Xu, Yi"]
[WhiteFideId "35093487"]
[BlackFideId "8605564"]
[WhiteElo "2657"]
[BlackElo "2471"]
[Result "1-0"]
[Round "04"]
[TimeControl "180+1"]
[Date "2022.12.06"]
[WhiteClock "0:00:45"]
[BlackClock "0:00:07"]

1. d4 {[%clk 0:03:00]}  Nf6 {[%clk 0:03:00]} 2. Nf3 {[%clk 0:03:01]}  d5 {[%clk 0:03:00]} 3. Bf4 {[%clk 0:03:01]}  c5 {[%clk 0:03:00]} 4. e3 {[%clk 0:03:02]}  Nc6 {[%clk 0:03:00]} 5. Nbd2 {[%clk 0:03:03]}  Qb6 {[%clk 0:03:00]} 6. dxc5 {[%clk 0:03:03]}  Qxb2 {[%clk 0:03:01]} 7. Rb1 {[%clk 0:03:03]}  Qa3 {[%clk 0:03:01]} 8. Bb5 {[%clk 0:03:04]}  g6 {[%clk 0:03:00]} 9. e4 {[%clk 0:02:58]}  Bg7 {[%clk 0:02:41]} 10. Nd4 {[%clk 0:02:22]}  Qxc5 {[%clk 0:02:07]} 11. Be3 {[%clk 0:02:21]}  Ng4 {[%clk 0:01:41]} 12. N2b3 {[%clk 0:02:19]}  Nxe3 {[%clk 0:01:15]} 13. fxe3 {[%clk 0:02:04]}  Qc3+ {[%clk 0:01:11]} 14. Qd2 {[%clk 0:02:03]}  Qxd2+ {[%clk 0:01:10]} 15. Kxd2 {[%clk 0:02:04]}  Bd7 {[%clk 0:01:04]} 16. exd5 {[%clk 0:02:03]}  Nxd4 {[%clk 0:01:04]} 17. Nxd4 {[%clk 0:02:03]}  Bxd4 {[%clk 0:01:01]} 18. exd4 {[%clk 0:02:00]}  Bxb5 {[%clk 0:01:00]} 19. Rxb5 {[%clk 0:02:01]}  O-O-O {[%clk 0:00:59]} 20. Kd3 {[%clk 0:01:56]}  e6 {[%clk 0:00:55]} 21. dxe6 {[%clk 0:01:55]}  fxe6 {[%clk 0:00:56]} 22. Re5 {[%clk 0:01:53]}  Rd6 {[%clk 0:00:56]} 23. Rf1 {[%clk 0:01:52]}  Rhd8 {[%clk 0:00:55]} 24. c3 {[%clk 0:01:52]}  Ra6 {[%clk 0:00:55]} 25. Rf2 {[%clk 0:01:44]}  Rd7 {[%clk 0:00:54]} 26. h4 {[%clk 0:01:42]}  Ra3 {[%clk 0:00:37]} 27. Rxe6 {[%clk 0:01:40]}  b5 {[%clk 0:00:37]} 28. Rc6+ {[%clk 0:01:22]}  Kb7 {[%clk 0:00:35]} 29. Rc5 {[%clk 0:01:22]}  a6 {[%clk 0:00:34]} 30. Ke4 {[%clk 0:01:03]}  Kb6 {[%clk 0:00:25]} 31. Rf6+ {[%clk 0:01:01]}  Ka5 {[%clk 0:00:26]} 32. Rcc6 {[%clk 0:01:01]}  Ra7 {[%clk 0:00:26]} 33. Rf2 {[%clk 0:01:00]}  Ka4 {[%clk 0:00:17]} 34. d5 {[%clk 0:00:58]}  a5 {[%clk 0:00:18]} 35. d6 {[%clk 0:00:59]}  Rd7 {[%clk 0:00:16]} 36. Kd5 {[%clk 0:00:58]}  b4 {[%clk 0:00:16]} 37. Ke6 {[%clk 0:00:53]}  Rd8 {[%clk 0:00:11]} 38. Ke7 {[%clk 0:00:51]}  Rb8 {[%clk 0:00:09]} 39. d7 {[%clk 0:00:50]}  Rxc3 {[%clk 0:00:07]} 40. Rxc3 {[%clk 0:00:49]}  bxc3 {[%clk 0:00:07]} 41. d8=Q {[%clk 0:00:45]} 1-0


[Site "https://www.chess.com"]

[Event "Titled Tuesday Blitz December 06 Early 2022"]
[White "Sagita, Catur Adi"]
[Black "Kravtsiv, Martyn"]
[WhiteFideId "7104618"]
[BlackFideId "14113147"]
[WhiteElo "2232"]
[BlackElo "2695"]
[Result "0-1"]
[Round "04"]
[TimeControl "180+1"]
[Date "2022.12.06"]
[WhiteClock "0:00:19"]
[BlackClock "0:00:44"]

1. d4 {[%clk 0:02:59]}  d5 {[%clk 0:02:59]} 2. Nf3 {[%clk 0:02:59]}  Nf6 {[%clk 0:02:58]} 3. c4 {[%clk 0:02:59]}  e6 {[%clk 0:02:57]} 4. Nc3 {[%clk 0:02:59]}  Nbd7 {[%clk 0:02:57]} 5. cxd5 {[%clk 0:02:58]}  exd5 {[%clk 0:02:56]} 6. Bg5 {[%clk 0:02:58]}  Bb4 {[%clk 0:02:56]} 7. e3 {[%clk 0:02:58]}  c5 {[%clk 0:02:55]} 8. Bd3 {[%clk 0:02:55]}  Qa5 {[%clk 0:02:54]} 9. O-O {[%clk 0:02:54]}  c4 {[%clk 0:02:51]} 10. Bf5 {[%clk 0:02:53]}  Bxc3 {[%clk 0:02:48]} 11. bxc3 {[%clk 0:02:53]}  Ne4 {[%clk 0:02:44]} 12. Bxe4 {[%clk 0:02:23]}  dxe4 {[%clk 0:02:43]} 13. Ne5 {[%clk 0:02:23]}  O-O {[%clk 0:02:12]} 14. Nxd7 {[%clk 0:01:58]}  Bxd7 {[%clk 0:02:11]} 15. Be7 {[%clk 0:01:58]}  Rfe8 {[%clk 0:02:10]} 16. Bb4 {[%clk 0:01:58]}  Qd5 {[%clk 0:02:04]} 17. Kh1 {[%clk 0:01:51]}  Re6 {[%clk 0:01:56]} 18. f4 {[%clk 0:01:22]}  exf3 {[%clk 0:01:53]} 19. Qxf3 {[%clk 0:01:22]}  Qxf3 {[%clk 0:01:53]} 20. Rxf3 {[%clk 0:01:23]}  Bc6 {[%clk 0:01:53]} 21. Rg3 {[%clk 0:01:23]}  a5 {[%clk 0:01:50]} 22. Bc5 {[%clk 0:01:22]}  Be4 {[%clk 0:01:50]} 23. Kg1 {[%clk 0:01:13]}  h6 {[%clk 0:01:47]} 24. Rd1 {[%clk 0:01:11]}  Rd8 {[%clk 0:01:45]} 25. Rd2 {[%clk 0:01:04]}  Rd5 {[%clk 0:01:32]} 26. Rb2 {[%clk 0:01:02]}  Rf5 {[%clk 0:01:31]} 27. h3 {[%clk 0:00:57]}  g5 {[%clk 0:01:18]} 28. h4 {[%clk 0:00:37]}  f6 {[%clk 0:00:51]} 29. hxg5 {[%clk 0:00:37]}  fxg5 {[%clk 0:00:50]} 30. Rh3 {[%clk 0:00:34]}  Kh7 {[%clk 0:00:49]} 31. Bb6 {[%clk 0:00:20]}  Kg6 {[%clk 0:00:45]} 32. Bxa5 {[%clk 0:00:19]}  Rxa5 {[%clk 0:00:44]} 0-1


[Site "https://www.chess.com"]